Workbook

Sheet VYHODNOCENÍ
A1: VYHODNOCENÍ | E1: kurz EUR/CZK: | F1: 25.1 | J1: =SUBTOTAL(9,J3:J1487) -> 724.17 | K1: =M1/J1 -> 7782.404684 | L1: =N1/J1 -> 312.1086485 | M1: =SUBTOTAL(9,M3:M1487) -> 5635784 | N1: =SUBTOTAL(9,N3:N1487) -> 226019.72 | O1: =P1/J1 -> 12637.08771 | P1: =SUBTOTAL(9,P3:P1487) -> 9151399.81 | Q1: =O1-K1 -> 4854.68303 | R1: =S1/J1 -> 507.8763887 | S1: =SUBTOTAL(9,S3:S1487) -> 367788.8444
A2: EVIDENČNÍ ČÍSLO (Nummer) | B2: ŠTÍTEK (Etikette) | C2: ZÁMĚR (Bereitstellungsmeldung Nr.) | D2: PŮVOD - PLO (Herkunft) | E2: DŘEVINA (Holz) | F2: DÉLKA (Lang) [m] | G2: STŘED. TLOUŠŤKA (Durchmesser) [cm] | H2: SORTIMENT | I2: ZÓNA | J2: m3 | K2: VYVOLÁVACÍ CENA [KČ/m3] | L2: VYVOLÁVACÍ CENA (Startpreis) [EUR/m3] | M2: VYVOLÁVACÍ CENA ZA KS (Kč) | N2: VYVOLÁVACÍ CENA ZA KS (Startpreis Stk) (EUR) | O2: VÍTĚZNÁ CENA [Kč/m3] | P2: VÍTĚZNÁ CENA ZA KS (Kč) | Q2: VÍTĚZNÁ MÍNUS VYVOLÁVACÍ | R2: VÍTĚZNÁ CENA (gewinnender Preis) (EUR/m3) | S2: VÍTĚZNÁ CENA ZA KS (gewinnender Preis) (EUR) | T2: ČETNOST NABÍDEK (Häufigkeit der Angebote)
A3: 1 | B3: 16821 | C3: 8 | E3: DB | F3: 7.6 | G3: 44 | H3: A | I3: A | J3: 0.97 | K3: 8000 | L3: 321 | M3: =J3*K3 -> 7760 | N3: =J3*L3 -> 311.37 | O3: 12145.78 | P3: 11781.4066 | Q3: 4145.78 | R3: 487 | S3: 472.39 | T3: 8
A4: 2 | B4: 16822 | C4: 8 | E4: DB | F4: 7 | G4: 54 | H4: B | I4: B | J4: 1.36 | K4: 7500 | L4: 301 | M4: =J4*K4 -> 10200 | N4: 409.36 | O4: 13295 | P4: 18081.2 | Q4: 5795 | R4: 533.0793905 | S4: 724.9879711 | T4: 8
A5: 3 | B5: 16823 | C5: 8 | E5: DB | F5: 6.5 | G5: 65 | H5: B | I5: A | J5: 1.85 | K5: 7500 | L5: 301 | M5: 13875 | N5: 556.85 | O5: 14122 | P5: 26125.7 | Q5: 6622 | R5: 566.2389735 | S5: 1047.542101 | T5: 4
A6: 4 | B6: 16824 | C6: 8 | E6: DB | F6: 6 | G6: 48 | H6: B | I6: B | J6: 0.92 | K6: 6000 | L6: 241 | M6: 5520 | N6: 221.72 | O6: 11397.58 | P6: 10485.7736 | Q6: 5397.58 | R6: 457 | S6: 420.44 | T6: 7
A7: 5 | B7: 16825 | C7: 8 | E7: DB | F7: 5.5 | G7: 48 | H7: A | I7: A | J7: 0.84 | K7: 8000 | L7: 321 | M7: 6720 | N7: 269.64 | O7: 12644.58 | P7: 10621.4472 | Q7: 4644.58 | R7: 507 | S7: 425.88 | T7: 5
A8: 6 | B8: 16826 | C8: 8 | E8: DB | F8: 4.5 | G8: 39 | H8: A | I8: B | J8: 0.45 | K8: 5500 | L8: 221 | M8: 2475 | N8: 99.45 | O8: 10150.58 | P8: 4567.761 | Q8: 4650.58 | R8: 407 | S8: 183.15 | T8: 7
A9: 7 | B9: 16827 | C9: 8 | E9: DB | F9: 4 | G9: 50 | H9: A | I9: A | J9: 0.67 | K9: 10000 | L9: 401 | M9: 6700 | N9: 268.67 | O9: 16061.36 | P9: 10761.1112 | Q9: 6061.36 | R9: 644 | S9: 431.48 | T9: 7
A10: 8 | B10: 16828 | C10: 8 | E10: DB | F10: 4 | G10: 44 | H10: II | I10: A | J10: 0.51 | K10: 10000 | L10: 401 | M10: 5100 | N10: 204.51 | O10: 13295 | P10: 6780.45 | Q10: 3295 | R10: 533.0793905 | S10: 271.8704892 | T10: 6
A11: 9 | B11: 16829 | C11: 8 | E11: DB | F11: 3 | G11: 57 | H11: A | I11: A | J11: 0.65 | K11: 10000 | L11: 401 | M11: 6500 | N11: 260.65 | O11: 11322.76 | P11: 7359.794 | Q11: 1322.76 | R11: 454 | S11: 295.1 | T11: 3
A12: 10 | B12: 16830 | C12: 8 | E12: DB | F12: 3 | G12: 48 | H12: II | I12: A | J12: 0.46 | K12: 10000 | L12: 401 | M12: 4600 | N12: 184.46 | O12: 19602.84 | P12: 9017.3064 | Q12: 9602.84 | R12: 786 | S12: 361.56 | T12: 5
A13: 11 | B13: 16831 | C13: 8 | E13: DB | F13: 3.1 | G13: 59 | H13: A | I13: A | J13: 0.72 | K13: 10000 | L13: 401 | M13: 7200 | N13: 288.72 | O13: 8621 | P13: 6207.12 | Q13: -1379 | R13: 345.6696071 | S13: 248.8821171 | T13: 2
A14: 12 | B14: 16832 | C14: 8 | E14: DB | F14: 2.5 | G14: 47 | H14: A | I14: A | J14: 0.37 | K14: 8000 | L14: 321 | M14: 2960 | N14: 118.77 | O14: 8150 | P14: 3015.5 | Q14: 150 | R14: 326.7842823 | S14: 120.9101844 | T14: 1
A15: 13 | B15: 16833 | C15: 8 | E15: DB | F15: 3 | G15: 48 | H15: A | I15: A | J15: 0.46 | K15: 8000 | L15: 321 | M15: 3680 | N15: 147.66 | O15: 11861 | P15: 5456.06 | Q15: 3861 | R15: 475.5813953 | S15: 218.7674419 | T15: 4
A16: 14 | B16: 16834 | C16: 8 | E16: DB | F16: 3.5 | G16: 55 | H16: II | I16: A | J16: 0.71 | K16: 12000 | L16: 481 | M16: 8520 | N16: 341.51 | O16: 14975 | P16: 10632.25 | Q16: 2975 | R16: 600.4410585 | S16: 426.3131516 | T16: 3
A17: 15 | B17: 16835 | C17: 8 | E17: DB | F17: 3.5 | G17: 53 | H17: A | I17: A | J17: 0.66 | K17: 10000 | L17: 401 | M17: 6600 | N17: 264.66 | O17: 13295 | P17: 8774.7 | Q17: 3295 | R17: 533.0793905 | S17: 351.8323978 | T17: 3
A18: 16 | B18: 16836 | C18: 8 | E18: DB | F18: 3.5 | G18: 56 | H18: II | I18: A | J18: 0.73 | K18: 12000 | L18: 481 | M18: 8760 | N18: 351.13 | O18: 20600.44 | P18: 15038.3212 | Q18: 8600.44 | R18: 826 | S18: 602.98 | T18: 4
A19: 17 | B19: 16837 | C19: 8 | E19: DB | F19: 3.4 | G19: 56 | H19: A | I19: A | J19: 0.71 | K19: 10000 | L19: 401 | M19: 7100 | N19: 284.71 | O19: 21448.4 | P19: 15228.364 | Q19: 11448.4 | R19: 860 | S19: 610.6 | T19: 3
A20: 18 | B20: 16838 | C20: 8 | E20: DB | F20: 3.4 | G20: 62 | H20: A | I20: A | J20: 0.88 | K20: 10000 | L20: 401 | M20: 8800 | N20: 352.88 | O20: 17956.8 | P20: 15801.984 | Q20: 7956.8 | R20: 720 | S20: 633.6 | T20: 4
A21: 19 | B21: 16839 | C21: 8 | E21: DB | F21: 3.5 | G21: 61 | H21: II | I21: A | J21: 0.87 | K21: 12000 | L21: 481 | M21: 10440 | N21: 418.47 | O21: 22944.8 | P21: 19961.976 | Q21: 10944.8 | R21: 920 | S21: 800.4 | T21: 4
A22: 20 | B22: 16840 | C22: 8 | E22: DB | F22: 3 | G22: 52 | H22: II | I22: A | J22: 0.54 | K22: 12000 | L22: 481 | M22: 6480 | N22: 259.74 | O22: 15886.78 | P22: 8578.8612 | Q22: 3886.78 | R22: 637 | S22: 343.98 | T22: 3
A23: 21 | B23: 16841 | C23: 8 | E23: DB | F23: 3.3 | G23: 53 | H23: A | I23: A | J23: 0.62 | K23: 10000 | L23: 401 | M23: 6200 | N23: 248.62 | O23: 12861 | P23: 7973.82 | Q23: 2861 | R23: 515.6776263 | S23: 319.7201283 | T23: 4
A24: 22 | B24: 16842 | C24: 8 | E24: DB | F24: 3.2 | G24: 50 | H24: II | I24: A | J24: 0.53 | K24: 12000 | L24: 481 | M24: 6360 | N24: 254.93 | O24: 19104.04 | P24: 10125.1412 | Q24: 7104.04 | R24: 766 | S24: 405.98 | T24: 5
A25: 23 | B25: 16843 | C25: 8 | E25: DB | F25: 4 | G25: 52 | H25: II | I25: A | J25: 0.72 | K25: 12000 | L25: 481 | M25: 8640 | N25: 346.32 | O25: 14122 | P25: 10167.84 | Q25: 2122 | R25: 566.2389735 | S25: 407.6920609 | T25: 5
A26: 24 | B26: 16844 | C26: 8 | E26: DB | F26: 4 | G26: 58 | H26: II | I26: A | J26: 0.9 | K26: 12000 | L26: 481 | M26: 10800 | N26: 432.9 | O26: 17956.8 | P26: 16161.12 | Q26: 5956.8 | R26: 720 | S26: 648 | T26: 9
A27: 25 | B27: 16845 | C27: 8 | E27: DB | F27: 4 | G27: 51 | H27: D | I27: C | J27: 0.69 | K27: 5000 | L27: 200 | M27: 3450 | N27: 138 | O27: 0 | P27: 0 | Q27: -5000 | R27: 0 | S27: 0 | T27: 1
A28: 26 | B28: 16846 | C28: 8 | E28: DB | F28: 4 | G28: 64 | H28: II | I28: A | J28: 1.1 | K28: 12000 | L28: 481 | M28: 13200 | N28: 529.1 | O28: 17522 | P28: 19274.2 | Q28: 5522 | R28: 702.5661588 | S28: 772.8227747 | T28: 5
A29: 27 | B29: 16847 | C29: 8 | E29: DB | F29: 4 | G29: 52 | H29: A | I29: A | J29: 0.72 | K29: 10000 | L29: 401 | M29: 7200 | N29: 288.72 | O29: 14975 | P29: 10782 | Q29: 4975 | R29: 600.4410585 | S29: 432.3175621 | T29: 8
A30: 28 | B30: 16848 | C30: 8 | E30: DB | F30: 4 | G30: 46 | H30: II | I30: A | J30: 0.56 | K30: 10000 | L30: 401 | M30: 5600 | N30: 224.56 | O30: 13610 | P30: 7621.6 | Q30: 3610 | R30: 545.7097033 | S30: 305.5974338 | T30: 7
A31: 29 | B31: 16849 | C31: 8 | E31: DB | F31: 4 | G31: 45 | H31: B | I31: B | J31: 0.54 | K31: 6000 | L31: 241 | M31: 3240 | N31: 130.14 | O31: 12405 | P31: 6698.7 | Q31: 6405 | R31: 497.393745 | S31: 268.5926223 | T31: 4
A32: 30 | B32: 16850 | C32: 8 | E32: DB | F32: 4 | G32: 47 | H32: A | I32: A | J32: 0.59 | K32: 8000 | L32: 321 | M32: 4720 | N32: 189.39 | O32: 15238.34 | P32: 8990.6206 | Q32: 7238.34 | R32: 611 | S32: 360.49 | T32: 8
A33: 31 | B33: 16851 | C33: 8 | E33: DB | F33: 4.2 | G33: 45 | H33: A | I33: A | J33: 0.56 | K33: 8000 | L33: 321 | M33: 4480 | N33: 179.76 | O33: 12145.78 | P33: 6801.6368 | Q33: 4145.78 | R33: 487 | S33: 272.72 | T33: 4
A34: 32 | B34: 16852 | C34: 8 | E34: DB | F34: 4 | G34: 44 | H34: A | I34: A | J34: 0.51 | K34: 8000 | L34: 321 | M34: 4080 | N34: 163.71 | O34: 13866.64 | P34: 7071.9864 | Q34: 5866.64 | R34: 556 | S34: 283.56 | T34: 8
A35: 33 | B35: 16853 | C35: 8 | E35: DB | F35: 2.9 | G35: 62 | H35: II | I35: A | J35: 0.75 | K35: 12000 | L35: 481 | M35: 9000 | N35: 360.75 | O35: 30152.46 | P35: 22614.345 | Q35: 18152.46 | R35: 1209 | S35: 906.75 | T35: 4
A36: 34 | B36: 16854 | C36: 7 | E36: DB | F36: 4.2 | G36: 43 | H36: B | I36: B | J36: 0.51 | K36: 6000 | L36: 241 | M36: 3060 | N36: 122.91 | O36: 9726.6 | P36: 4960.566 | Q36: 3726.6 | R36: 390 | S36: 198.9 | T36: 2
A37: 35 | B37: 16855 | C37: 7 | E37: DB | F37: 4.2 | G37: 78 | H37: B | I37: A | J37: 1.73 | K37: 7500 | L37: 301 | M37: 12975 | N37: 520.73 | O37: 10225.4 | P37: 17689.942 | Q37: 2725.4 | R37: 410 | S37: 709.3 | T37: 3
A38: 36 | B38: 16856 | C38: 7 | E38: DB | F38: 3.2 | G38: 58 | H38: C | I38: C | J38: 0.72 | K38: 5000 | L38: 200 | M38: 3600 | N38: 144 | O38: 3000 | P38: 2160 | Q38: -2000 | R38: 120.2886929 | S38: 86.60785886 | T38: 1
A39: 37 | B39: 16857 | C39: 7 | E39: JS | F39: 4 | G39: 57 | H39: A | I39: A | J39: 0.87 | K39: 3500 | L39: 140 | M39: 3045 | N39: 121.8 | O39: 8550 | P39: 7438.5 | Q39: 5050 | R39: 342.8227747 | S39: 298.255814 | T39: 4
A40: 38 | B40: 16858 | C40: 7 | E40: DB | F40: 3 | G40: 84 | H40: A | I40: A | J40: 1.43 | K40: 10000 | L40: 401 | M40: 14300 | N40: 573.43 | O40: 27122 | P40: 38784.46 | Q40: 17122 | R40: 1087.489976 | S40: 1555.110666 | T40: 7
A41: 39 | B41: 16859 | C41: 7 | E41: DB | F41: 4.1 | G41: 65 | H41: B | I41: A | J41: 1.17 | K41: 7500 | L41: 301 | M41: 8775 | N41: 352.17 | O41: 10225.4 | P41: 11963.718 | Q41: 2725.4 | R41: 410 | S41: 479.7 | T41: 2
A42: 40 | B42: 16860 | C42: 7 | E42: JS | F42: 4 | G42: 50 | H42: A | I42: A | J42: 0.67 | K42: 3500 | L42: 140 | M42: 2345 | N42: 93.8 | O42: 4738.6 | P42: 3174.862 | Q42: 1238.6 | R42: 190 | S42: 127.3 | T42: 4
A43: 41 | B43: 16861 | C43: 7 | E43: DB | F43: 4 | G43: 68 | H43: A | I43: A | J43: 1.25 | K43: 10000 | L43: 401 | M43: 12500 | N43: 501.25 | O43: 22670.46 | P43: 28338.075 | Q43: 12670.46 | R43: 909 | S43: 1136.25 | T43: 5
A44: 42 | B44: 16862 | C44: 7 | E44: DB | F44: 4.6 | G44: 62 | H44: B | I44: A | J44: 1.19 | K44: 7500 | L44: 301 | M44: 8925 | N44: 358.19 | O44: 10225.4 | P44: 12168.226 | Q44: 2725.4 | R44: 410 | S44: 487.9 | T44: 2
A45: 43 | B45: 16863 | C45: 7 | E45: JS | F45: 5.5 | G45: 45 | H45: A | I45: A | J45: 0.74 | K45: 3500 | L45: 140 | M45: 2590 | N45: 103.6 | O45: 4738.6 | P45: 3506.564 | Q45: 1238.6 | R45: 190 | S45: 140.6 | T45: 3
A46: 44 | B46: 16864 | C46: 7 | E46: JS | F46: 5.5 | G46: 46 | H46: A | I46: A | J46: 0.77 | K46: 3500 | L46: 140 | M46: 2695 | N46: 107.8 | O46: 4738.6 | P46: 3648.722 | Q46: 1238.6 | R46: 190 | S46: 146.3 | T46: 3
A47: 45 | B47: 16865 | C47: 7 | E47: DB | F47: 6 | G47: 66 | H47: II | I47: A | J47: 1.76 | K47: 12000 | L47: 481 | M47: 21120 | N47: 846.56 | O47: 31075.24 | P47: 54692.4224 | Q47: 19075.24 | R47: 1246 | S47: 2192.96 | T47: 10
A48: 46 | B48: 16866 | C48: 7 | E48: DB | F48: 5 | G48: 47 | H48: A | I48: A | J48: 0.73 | K48: 8000 | L48: 321 | M48: 5840 | N48: 234.33 | O48: 13143.38 | P48: 9594.6674 | Q48: 5143.38 | R48: 527 | S48: 384.71 | T48: 5
A49: 47 | B49: 16867 | C49: 7 | E49: DB | F49: 5 | G49: 50 | H49: II | I49: A | J49: 0.83 | K49: 12000 | L49: 481 | M49: 9960 | N49: 399.23 | O49: 16522 | P49: 13713.26 | Q49: 4522 | R49: 662.4699278 | S49: 549.8500401 | T49: 6
A50: 48 | B50: 16868 | C50: 4 | E50: DB | F50: 6 | G50: 82 | H50: I | I50: A | J50: 2.73 | K50: 18000 | L50: 722 | M50: 49140 | N50: 1971.06 | O50: 35414.8 | P50: 96682.404 | Q50: 17414.8 | R50: 1420 | S50: 3876.6 | T50: 7
A51: 49 | B51: 16869 | C51: 4 | E51: DB | F51: 6 | G51: 69 | H51: B | I51: A | J51: 1.93 | K51: 7500 | L51: 301 | M51: 14475 | N51: 580.93 | O51: 10150.58 | P51: 19590.6194 | Q51: 2650.58 | R51: 407 | S51: 785.51 | T51: 3
A52: 50 | B52: 16870 | C52: 4 | E52: DB | F52: 5 | G52: 75 | H52: II | I52: A | J52: 1.9 | K52: 12000 | L52: 481 | M52: 22800 | N52: 913.9 | O52: 31549.1 | P52: 59943.29 | Q52: 19549.1 | R52: 1265 | S52: 2403.5 | T52: 7
A53: 51 | B53: 16871 | C53: 4 | E53: JS | F53: 4 | G53: 57 | H53: A | I53: A | J53: 0.87 | K53: 3500 | L53: 140 | M53: 3045 | N53: 121.8 | O53: 4738.6 | P53: 4122.582 | Q53: 1238.6 | R53: 190 | S53: 165.3 | T53: 5
A54: 52 | B54: 16872 | C54: 4 | E54: JS | F54: 5 | G54: 55 | H54: A | I54: A | J54: 1.01 | K54: 3500 | L54: 140 | M54: 3535 | N54: 141.4 | O54: 4738.6 | P54: 4785.986 | Q54: 1238.6 | R54: 190 | S54: 191.9 | T54: 4
A55: 53 | B55: 16873 | C55: 4 | E55: JS | F55: 8 | G55: 54 | H55: II | I55: A | J55: 1.56 | K55: 4500 | L55: 180 | M55: 7020 | N55: 280.8 | O55: 7881.04 | P55: 12294.4224 | Q55: 3381.04 | R55: 316 | S55: 492.96 | T55: 7
A56: 54 | B56: 16874 | C56: 4 | E56: JS | F56: 8 | G56: 60 | H56: II | I56: A | J56: 1.93 | K56: 4500 | L56: 180 | M56: 8685 | N56: 347.4 | O56: 4988 | P56: 9626.84 | Q56: 488 | R56: 200 | S56: 386 | T56: 4
A57: 55 | B57: 16875 | C57: 4 | E57: JS | F57: 7 | G57: 48 | H57: II | I57: A | J57: 1.07 | K57: 4500 | L57: 180 | M57: 4815 | N57: 192.6 | O57: 6135.24 | P57: 6564.7068 | Q57: 1635.24 | R57: 246 | S57: 263.22 | T57: 6
A58: 56 | B58: 16876 | C58: 4 | E58: JS | F58: 7 | G58: 47 | H58: A | I58: A | J58: 1.03 | K58: 3500 | L58: 140 | M58: 3605 | N58: 144.2 | O58: 4750 | P58: 4892.5 | Q58: 1250 | R58: 190.457097 | S58: 196.1708099 | T58: 5
A59: 57 | B59: 16877 | C59: 8 | E59: DB | F59: 6.6 | G59: 48 | H59: B | I59: B | J59: 1.01 | K59: 6000 | L59: 241 | M59: 6060 | N59: 243.41 | O59: 11397.58 | P59: 11511.5558 | Q59: 5397.58 | R59: 457 | S59: 461.57 | T59: 5
A60: 58 | B60: 16878 | C60: 8 | E60: DB | F60: 6.4 | G60: 45 | H60: A | I60: A | J60: 0.86 | K60: 8000 | L60: 321 | M60: 6880 | N60: 276.06 | O60: 14066.16 | P60: 12096.8976 | Q60: 6066.16 | R60: 564 | S60: 485.04 | T60: 7
A61: 59 | B61: 16879 | C61: 8 | E61: DB | F61: 5.6 | G61: 46 | H61: A | I61: A | J61: 0.79 | K61: 8000 | L61: 321 | M61: 6320 | N61: 253.59 | O61: 13143.38 | P61: 10383.2702 | Q61: 5143.38 | R61: 527 | S61: 416.33 | T61: 4
A62: 60 | B62: 16880 | C62: 8 | E62: DB | F62: 5 | G62: 43 | H62: A | I62: A | J62: 0.61 | K62: 8000 | L62: 321 | M62: 4880 | N62: 195.81 | O62: 13667.12 | P62: 8336.9432 | Q62: 5667.12 | R62: 548 | S62: 334.28 | T62: 7
A63: 61 | B63: 16881 | C63: 8 | E63: DB | F63: 5.4 | G63: 42 | H63: A | I63: A | J63: 0.63 | K63: 8000 | L63: 321 | M63: 5040 | N63: 202.23 | O63: 12145.78 | P63: 7651.8414 | Q63: 4145.78 | R63: 487 | S63: 306.81 | T63: 4
A64: 62 | B64: 16882 | C64: 8 | E64: DB | F64: 4.6 | G64: 49 | H64: II | I64: A | J64: 0.73 | K64: 10000 | L64: 401 | M64: 7300 | N64: 292.73 | O64: 14140.98 | P64: 10322.9154 | Q64: 4140.98 | R64: 567 | S64: 413.91 | T64: 7
A65: 63 | B65: 16883 | C65: 8 | E65: DB | F65: 4 | G65: 51 | H65: II | I65: A | J65: 0.69 | K65: 12000 | L65: 481 | M65: 8280 | N65: 331.89 | O65: 14975 | P65: 10332.75 | Q65: 2975 | R65: 600.4410585 | S65: 414.3043304 | T65: 5
A66: 64 | B66: 16884 | C66: 8 | E66: DB | F66: 4.4 | G66: 54 | H66: A | I66: A | J66: 0.86 | K66: 10000 | L66: 401 | M66: 8600 | N66: 344.86 | O66: 14290.62 | P66: 12289.9332 | Q66: 4290.62 | R66: 573 | S66: 492.78 | T66: 5
A67: 65 | B67: 16885 | C67: 4 | E67: DB | F67: 8 | G67: 78 | H67: I | I67: A | J67: 3.29 | K67: 18000 | L67: 722 | M67: 59220 | N67: =J67*L67 -> 2375.38 | O67: 37908.8 | P67: 124719.952 | Q67: 19908.8 | R67: 1520 | S67: 5000.8 | T67: 6
A68: 66 | B68: 16886 | C68: 4 | E68: DB | F68: 10 | G68: 59 | H68: II | I68: A | J68: 2.33 | K68: 12000 | L68: 481 | M68: =J68*K68 -> 27960 | N68: 1120.73 | O68: 21448.4 | P68: 49974.772 | Q68: 9448.4 | R68: 860 | S68: 2003.8 | T68: 7
A69: 67 | B69: 16887 | C69: 4 | E69: DB | F69: 9 | G69: 77 | H69: I | I69: A | J69: 3.61 | K69: 18000 | L69: 722 | M69: 64980 | N69: 2606.42 | O69: 45390.8 | P69: 163860.788 | Q69: 27390.8 | R69: 1820 | S69: 6570.2 | T69: 7
A70: 68 | B70: 16888 | C70: 4 | E70: DB | F70: 9 | G70: 71 | H70: I | I70: A | J70: 3.06 | K70: 18000 | L70: 722 | M70: 55080 | N70: 2209.32 | O70: 36562.04 | P70: 111879.8424 | Q70: 18562.04 | R70: 1466 | S70: 4485.96 | T70: 7
A71: 69 | B71: 16889 | C71: 7 | E71: JS | F71: 8 | G71: 51 | H71: A | I71: A | J71: 1.39 | K71: 3500 | L71: 140 | M71: 4865 | N71: 194.6 | O71: 4738.6 | P71: 6586.654 | Q71: 1238.6 | R71: 190 | S71: 264.1 | T71: 3
A72: 70 | B72: 16890 | C72: 7 | E72: JS | F72: 11 | G72: 59 | H72: II | I72: A | J72: 2.57 | K72: 4500 | L72: 180 | M72: 11565 | N72: 462.6 | O72: 4988 | P72: 12819.16 | Q72: 488 | R72: 200 | S72: 514 | T72: 4
A73: 71 | B73: 16891 | C73: 7 | E73: DB | F73: 7 | G73: 63 | H73: B | I73: A | J73: 1.87 | K73: 7500 | L73: 301 | M73: 14025 | N73: 562.87 | O73: 10649.38 | P73: 19914.3406 | Q73: 3149.38 | R73: 427 | S73: 798.49 | T73: 5
A74: 72 | B74: 16892 | C74: 1 | E74: DB | F74: 10 | G74: 50 | H74: B | I74: B | J74: 1.66 | K74: 7500 | L74: 301 | M74: 12450 | N74: 499.66 | O74: 10225.4 | P74: 16974.164 | Q74: 2725.4 | R74: 410 | S74: 680.6 | T74: 3
A75: 73 | B75: 16893 | C75: 1 | E75: DB | F75: 4 | G75: 48 | H75: B | I75: B | J75: 0.61 | K75: 6000 | L75: 241 | M75: 3660 | N75: 147.01 | O75: 11505 | P75: 7018.05 | Q75: 5505 | R75: 461.3071371 | S75: 281.3973536 | T75: 5
A76: 74 | B76: 16894 | C76: 1 | E76: DB | F76: 4 | G76: 73 | H76: A | I76: A | J76: 1.44 | K76: 10000 | L76: 401 | M76: 14400 | N76: 577.44 | O76: 12220.6 | P76: 17597.664 | Q76: 2220.6 | R76: 490 | S76: 705.6 | T76: 3
A77: 75 | B77: 16895 | C77: 1 | E77: DB | F77: 6 | G77: 48 | H77: II | I77: A | J77: 0.92 | K77: 10000 | L77: 401 | M77: 9200 | N77: 368.92 | O77: 15188.46 | P77: 13973.3832 | Q77: 5188.46 | R77: 609 | S77: 560.28 | T77: 8
A78: 76 | B78: 16896 | C78: 1 | E78: DB | F78: 7 | G78: 59 | H78: B | I78: B | J78: 1.63 | K78: 7500 | L78: 301 | M78: 12225 | N78: 490.63 | O78: 12405 | P78: 20220.15 | Q78: 4905 | R78: 497.393745 | S78: 810.7518043 | T78: 4
A79: 77 | B79: 16897 | C79: 1 | E79: DB | F79: 8 | G79: 49 | H79: A | I79: A | J79: 1.28 | K79: 8000 | L79: 321 | M79: 10240 | N79: 410.88 | O79: 11505 | P79: 14726.4 | Q79: 3505 | R79: 461.3071371 | S79: 590.4731355 | T79: 6
A80: 78 | B80: 16898 | C80: 1 | E80: DB | F80: 7 | G80: 50 | H80: B | I80: B | J80: 1.17 | K80: 7500 | L80: 301 | M80: 8775 | N80: 352.17 | O80: 12405 | P80: 14513.85 | Q80: 4905 | R80: 497.393745 | S80: 581.9506816 | T80: 4
A81: 79 | B81: 16899 | C81: 1 | E81: DB | F81: 7 | G81: 64 | H81: C | I81: B | J81: 1.93 | K81: 5000 | L81: 200 | M81: 9650 | N81: 386 | O81: 7232.6 | P81: 13958.918 | Q81: 2232.6 | R81: 290 | S81: 559.7 | T81: 3
A82: 80 | B82: 16900 | C82: 1 | E82: DB | F82: 7 | G82: 44 | H82: B | I82: B | J82: 0.9 | K82: 6000 | L82: 241 | M82: 5400 | N82: 216.9 | O82: 10175.52 | P82: 9157.968 | Q82: 4175.52 | R82: 408 | S82: 367.2 | T82: 3
A83: 81 | B83: 16901 | C83: 1 | E83: DB | F83: 7 | G83: 64 | H83: B | I83: A | J83: 1.93 | K83: 7500 | L83: 301 | M83: 14475 | N83: 580.93 | O83: 13143.38 | P83: 25366.7234 | Q83: 5643.38 | R83: 527 | S83: 1017.11 | T83: 7
A84: 82 | B84: 16902 | C84: 1 | E84: DB | F84: 7 | G84: 46 | H84: B | I84: B | J84: 0.98 | K84: 6000 | L84: 241 | M84: 5880 | N84: 236.18 | O84: 12405 | P84: 12156.9 | Q84: 6405 | R84: 497.393745 | S84: 487.4458701 | T84: 8
A85: 83 | B85: 16903 | C85: 6 | E85: JS | F85: 7 | G85: 52 | H85: A | I85: A | J85: 1.26 | K85: 3500 | L85: 140 | M85: 4410 | N85: 176.4 | O85: 4750 | P85: 5985 | Q85: 1250 | R85: 190.457097 | S85: 239.9759423 | T85: 5
A86: 84 | B86: 16904 | C86: 6 | E86: DB | F86: 8.5 | G86: 48 | H86: A | I86: A | J86: 1.3 | K86: 8000 | L86: 321 | M86: 10400 | N86: 417.3 | O86: 13143.38 | P86: 17086.394 | Q86: 5143.38 | R86: 527 | S86: 685.1 | T86: 4
A87: 85 | B87: 16905 | C87: 6 | E87: DB | F87: 8 | G87: 58 | H87: II | I87: A | J87: 1.8 | K87: 12000 | L87: 481 | M87: 21600 | N87: 865.8 | O87: 31574.04 | P87: 56833.272 | Q87: 19574.04 | R87: 1266 | S87: 2278.8 | T87: 12
A88: 86 | B88: 16906 | C88: 6 | E88: DB | F88: 7.5 | G88: 51 | H88: II | I88: A | J88: 1.3 | K88: 12000 | L88: 481 | M88: 15600 | N88: 625.3 | O88: 14122 | P88: 18358.6 | Q88: 2122 | R88: 566.2389735 | S88: 736.1106656 | T88: 7
A89: 87 | B89: 16907 | C89: 6 | E89: DB | F89: 6.5 | G89: 59 | H89: II | I89: A | J89: 1.52 | K89: 12000 | L89: 481 | M89: 18240 | N89: 731.12 | O89: 21448.4 | P89: 32601.568 | Q89: 9448.4 | R89: 860 | S89: 1307.2 | T89: 6
A90: 88 | B90: 16908 | C90: 6 | E90: JS | F90: 7 | G90: 52 | H90: A | I90: A | J90: 1.26 | K90: 3500 | L90: 140 | M90: 4410 | N90: 176.4 | O90: 4750 | P90: 5985 | Q90: 1250 | R90: 190.457097 | S90: 239.9759423 | T90: 5
A91: 89 | B91: 16909 | C91: 6 | E91: JS | F91: 8 | G91: 50 | H91: II | I91: A | J91: 1.33 | K91: 4500 | L91: 180 | M91: 5985 | N91: 239.4 | O91: 5110 | P91: 6796.3 | Q91: 610 | R91: 204.8917402 | S91: 272.5060144 | T91: 5
A92: 90 | B92: 16910 | C92: 6 | E92: DB | F92: 4 | G92: 54 | H92: A | I92: A | J92: 0.78 | K92: 10000 | L92: 401 | M92: 7800 | N92: 312.78 | O92: 12610 | P92: 9835.8 | Q92: 2610 | R92: 505.6134723 | S92: 394.3785084 | T92: 4
A93: 91 | B93: 16911 | C93: 6 | E93: TR | F93: 3.9 | G93: 30 | H93: C | I93: C | J93: 0.26 | K93: 1700 | L93: 68 | M93: 442 | N93: 17.68 | O93: 1200 | P93: 312 | Q93: -500 | R93: 48.11547715 | S93: 12.51002406 | T93: 0
A94: 92 | B94: 16912 | C94: 6 | E94: TR | F94: 3.9 | G94: 32 | H94: C | I94: C | J94: 0.29 | K94: 1700 | L94: 68 | M94: 493 | N94: 19.72 | O94: 1200 | P94: 348 | Q94: -500 | R94: 48.11547715 | S94: 13.95348837 | T94: 0
A95: 93 | B95: 16913 | C95: 6 | E95: JS | F95: 5 | G95: 47 | H95: A | I95: A | J95: 0.73 | K95: 3500 | L95: 140 | M95: 2555 | N95: 102.2 | O95: 4738.6 | P95: 3459.178 | Q95: 1238.6 | R95: 190 | S95: 138.7 | T95: 3
A96: 94 | B96: 16914 | C96: 6 | E96: DB | F96: 5 | G96: 53 | H96: A | I96: A | J96: 0.94 | K96: 10000 | L96: 401 | M96: 9400 | N96: 376.94 | O96: 13610 | P96: 12793.4 | Q96: 3610 | R96: 545.7097033 | S96: 512.9671211 | T96: 5
A97: 95 | B97: 16915 | C97: 6 | E97: JS | F97: 5.3 | G97: 49 | H97: A | I97: A | J97: 0.85 | K97: 3500 | L97: 140 | M97: 2975 | N97: 119 | O97: 4738.6 | P97: 4027.81 | Q97: 1238.6 | R97: 190 | S97: 161.5 | T97: 4
A98: 96 | B98: 16916 | C98: 6 | E98: DB | F98: 5 | G98: 61 | H98: II | I98: A | J98: 1.25 | K98: 12000 | L98: 481 | M98: 15000 | N98: 601.25 | O98: 20552 | P98: 25690 | Q98: 8552 | R98: 824.0577386 | S98: 1030.072173 | T98: 7
A99: 97 | B99: 16917 | C99: 6 | E99: DB | F99: 4 | G99: 57 | H99: II | I99: A | J99: 0.87 | K99: 12000 | L99: 481 | M99: 10440 | N99: 418.47 | O99: 14975 | P99: 13028.25 | Q99: 2975 | R99: 600.4410585 | S99: 522.3837209 | T99: 5
A100: 98 | B100: 16918 | C100: 6 | E100: DB | F100: 3.2 | G100: 61 | H100: I | I100: A | J100: 0.8 | K100: 18000 | L100: 722 | M100: 14400 | N100: 577.6 | O100: 30576.44 | P100: 24461.152 | Q100: 12576.44 | R100: 1226 | S100: 980.8 | T100: 7
A101: 99 | B101: 16919 | C101: 6 | E101: DB | F101: 4.2 | G101: 55 | H101: C | I101: C | J101: 0.85 | K101: 5000 | L101: 200 | M101: 4250 | N101: 170 | O101: 7232.6 | P101: 6147.71 | Q101: 2232.6 | R101: 290 | S101: 246.5 | T101: 3
A102: 100 | B102: 16920 | C102: 6 | E102: DB | F102: 3.1 | G102: 51 | H102: II | I102: A | J102: 0.54 | K102: 12000 | L102: 481 | M102: 6480 | N102: 259.74 | O102: 21348.64 | P102: 11528.2656 | Q102: 9348.64 | R102: 856 | S102: 462.24 | T102: 4
A103: 101 | B103: 16921 | C103: 6 | E103: DB | F103: 3.5 | G103: 45 | H103: A | I103: A | J103: 0.47 | K103: 8000 | L103: 321 | M103: 3760 | N103: 150.87 | O103: 12405 | P103: 5830.35 | Q103: 4405 | R103: 497.393745 | S103: 233.7750601 | T103: 2
A104: 102 | B104: 16922 | C104: 6 | E104: DB | F104: 3.5 | G104: 61 | H104: A | I104: A | J104: 0.87 | K104: 10000 | L104: 401 | M104: 8700 | N104: 348.87 | O104: 23094.44 | P104: 20092.1628 | Q104: 13094.44 | R104: 926 | S104: 805.62 | T104: 3
A105: 103 | B105: 16923 | C105: 10 | E105: DB | F105: 3 | G105: 68 | H105: II | I105: A | J105: 0.93 | K105: 12000 | L105: 481 | M105: 11160 | N105: 447.33 | O105: 19453.2 | P105: 18091.476 | Q105: 7453.2 | R105: 780 | S105: 725.4 | T105: 4
A106: 104 | B106: 16924 | C106: 10 | E106: DB | F106: 5.9 | G106: 62 | H106: D | I106: C | J106: 1.52 | K106: 5000 | L106: 200 | M106: 7600 | N106: 304 | O106: 7232.6 | P106: 10993.552 | Q106: 2232.6 | R106: 290 | S106: 440.8 | T106: 2
A107: 105 | B107: 16925 | C107: 10 | E107: DB | F107: 8.9 | G107: 42 | H107: B | I107: B | J107: 1.04 | K107: 6000 | L107: 241 | M107: 6240 | N107: 250.64 | O107: 12145.78 | P107: 12631.6112 | Q107: 6145.78 | R107: 487 | S107: 506.48 | T107: 2
A108: 106 | B108: 16926 | C108: 10 | E108: JS | F108: 3 | G108: 61 | H108: A | I108: A | J108: 0.75 | K108: 3500 | L108: 140 | M108: 2625 | N108: 105 | O108: 5110 | P108: 3832.5 | Q108: 1610 | R108: 204.8917402 | S108: 153.6688051 | T108: 3
A109: 107 | B109: 16927 | C109: 10 | E109: JS | F109: 6.9 | G109: 50 | H109: B | I109: B | J109: 1.15 | K109: 3000 | L109: 120 | M109: 3450 | N109: 138 | O109: 4489.2 | P109: 5162.58 | Q109: 1489.2 | R109: 180 | S109: 207 | T109: 3
A110: 108 | B110: 16928 | C110: 10 | E110: JS | F110: 8 | G110: 72 | H110: C | I110: B | J110: 2.8 | K110: 2300 | L110: 92 | M110: 6440 | N110: 257.6 | O110: 4239.8 | P110: 11871.44 | Q110: 1939.8 | R110: 170 | S110: 476 | T110: 2
A111: 109 | B111: 16929 | C111: 10 | E111: JS | F111: 4.5 | G111: 54 | H111: B | I111: B | J111: 0.88 | K111: 3000 | L111: 120 | M111: 2640 | N111: 105.6 | O111: 4489.2 | P111: 3950.496 | Q111: 1489.2 | R111: 180 | S111: 158.4 | T111: 3
A112: 110 | B112: 16930 | C112: 10 | E112: JS | F112: 5 | G112: 71 | H112: A | I112: A | J112: 1.7 | K112: 3500 | L112: 140 | M112: 5950 | N112: 238 | O112: 4738.6 | P112: 8055.62 | Q112: 1238.6 | R112: 190 | S112: 323 | T112: 4
A113: 111 | B113: 16931 | C113: 10 | E113: JS | F113: 5 | G113: 64 | H113: B | I113: A | J113: 1.38 | K113: 3000 | L113: 120 | M113: 4140 | N113: 165.6 | O113: 4489.2 | P113: 6195.096 | Q113: 1489.2 | R113: 180 | S113: 248.4 | T113: 2
A114: 112 | B114: 16932 | C114: 10 | E114: DB | F114: 8 | G114: 46 | H114: II | I114: A | J114: 1.12 | K114: 10000 | L114: 401 | M114: 11200 | N114: 449.12 | O114: 13295 | P114: 14890.4 | Q114: 3295 | R114: 533.0793905 | S114: 597.0489174 | T114: 8
A115: 113 | B115: 16933 | C115: 11 | E115: DB | F115: 5.5 | G115: 60 | H115: A | I115: A | J115: 1.33 | K115: 10000 | L115: 401 | M115: 13300 | N115: 533.33 | O115: 23593.24 | P115: 31379.0092 | Q115: 13593.24 | R115: 946 | S115: 1258.18 | T115: 9
A116: 114 | B116: 16934 | C116: 11 | E116: DB | F116: 5 | G116: 66 | H116: B | I116: A | J116: 1.47 | K116: 7500 | L116: 301 | M116: 11025 | N116: 442.47 | O116: 13122 | P116: 19289.34 | Q116: 5622 | R116: 526.1427426 | S116: 773.4298316 | T116: 6
A117: 115 | B117: 16935 | C117: 11 | E117: DB | F117: 5.5 | G117: 84 | H117: B | I117: A | J117: 2.63 | K117: 7500 | L117: 301 | M117: 19725 | N117: 791.63 | O117: 8861 | P117: 23304.43 | Q117: 1361 | R117: 355.2927025 | S117: 934.4198075 | T117: 1
A118: 116 | B118: 16936 | C118: 11 | E118: DB | F118: 6 | G118: 59 | H118: II | I118: A | J118: 1.4 | K118: 12000 | L118: 481 | M118: 16800 | N118: 673.4 | O118: 22944.8 | P118: 32122.72 | Q118: 10944.8 | R118: 920 | S118: 1288 | T118: 8
A119: 117 | B119: 16937 | C119: 11 | E119: DB | F119: 3.5 | G119: 71 | H119: B | I119: A | J119: 1.19 | K119: 7500 | L119: 301 | M119: 8925 | N119: 358.19 | O119: 8579.36 | P119: 10209.4384 | Q119: 1079.36 | R119: 344 | S119: 409.36 | T119: 2
A120: 118 | B120: 16938 | C120: 11 | E120: DB | F120: 5 | G120: 81 | H120: B | I120: A | J120: 2.22 | K120: 7500 | L120: 301 | M120: 16650 | N120: 668.22 | O120: 10150.58 | P120: 22534.2876 | Q120: 2650.58 | R120: 407 | S120: 903.54 | T120: 1
A121: 119 | B121: 16939 | C121: 11 | E121: DB | F121: 5 | G121: 71 | H121: A | I121: A | J121: 1.7 | K121: 10000 | L121: 401 | M121: 17000 | N121: 681.7 | O121: 23942.4 | P121: 40702.08 | Q121: 13942.4 | R121: 960 | S121: 1632 | T121: 5
A122: 120 | B122: 16940 | C122: 11 | E122: DB | F122: 4.5 | G122: 57 | H122: B | I122: B | J122: 0.98 | K122: 7500 | L122: 301 | M122: 7350 | N122: 294.98 | O122: 17083.9 | P122: 16742.222 | Q122: 9583.9 | R122: 685 | S122: 671.3 | T122: 4
A123: 121 | B123: 16941 | C123: 11 | E123: DB | F123: 5 | G123: 51 | H123: A | I123: A | J123: 0.87 | K123: 10000 | L123: 401 | M123: 8700 | N123: 348.87 | O123: 12220.6 | P123: 10631.922 | Q123: 2220.6 | R123: 490 | S123: 426.3 | T123: 3
A124: 122 | B124: 16942 | C124: 11 | E124: DB | F124: 6.5 | G124: 60 | H124: A | I124: A | J124: 1.57 | K124: 10000 | L124: 401 | M124: 15700 | N124: 629.57 | O124: 13891.58 | P124: 21809.7806 | Q124: 3891.58 | R124: 557 | S124: 874.49 | T124: 7
A125: 123 | B125: 16943 | C125: 11 | E125: DB | F125: 2.5 | G125: 50 | H125: II | I125: A | J125: 0.42 | K125: 12000 | L125: 481 | M125: 5040 | N125: 202.02 | O125: 8150 | P125: 3423 | Q125: -3850 | R125: 326.7842823 | S125: 137.2493986 | T125: 2
A126: 124 | B126: 16944 | C126: 11 | E126: DB | F126: 6 | G126: 62 | H126: A | I126: A | J126: 1.55 | K126: 10000 | L126: 401 | M126: 15500 | N126: 621.55 | O126: 11397.58 | P126: 17666.249 | Q126: 1397.58 | R126: 457 | S126: 708.35 | T126: 2
A127: 125 | B127: 16945 | C127: 11 | E127: DB | F127: 5 | G127: 57 | H127: A | I127: A | J127: 1.09 | K127: 10000 | L127: 401 | M127: 10900 | N127: 437.09 | O127: 8750 | P127: 9537.5 | Q127: -1250 | R127: 350.8420209 | S127: 382.4178027 | T127: 2
A128: 126 | B128: 16946 | C128: 11 | E128: DB | F128: 3 | G128: 46 | H128: A | I128: A | J128: 0.42 | K128: 8000 | L128: 321 | M128: 3360 | N128: 134.82 | O128: 12110 | P128: 5086.2 | Q128: 4110 | R128: 485.5653569 | S128: 203.9374499 | T128: 4
A129: 127 | B129: 16947 | C129: 11 | E129: DB | F129: 3 | G129: 64 | H129: II | I129: A | J129: 0.83 | K129: 12000 | L129: 481 | M129: 9960 | N129: 399.23 | O129: 20500.68 | P129: 17015.5644 | Q129: 8500.68 | R129: 822 | S129: 682.26 | T129: 3
A130: 128 | B130: 16948 | C130: 11 | E130: DB | F130: 4 | G130: 73 | H130: I | I130: A | J130: 1.44 | K130: 18000 | L130: 722 | M130: 25920 | N130: 1039.68 | O130: 34566.84 | P130: 49776.2496 | Q130: 16566.84 | R130: 1386 | S130: 1995.84 | T130: 7
A131: 129 | B131: 16949 | C131: 11 | E131: DB | F131: 4.5 | G131: 74 | H131: C | I131: B | J131: 1.66 | K131: 5000 | L131: 200 | M131: 8300 | N131: =J131*L131 -> 332 | O131: 10122 | P131: 16802.52 | Q131: 5122 | R131: 405.8540497 | S131: 673.7177225 | T131: 3
A132: 130 | B132: 16950 | C132: 11 | E132: DB | F132: 3.1 | G132: 55 | H132: A | I132: A | J132: 0.63 | K132: 10000 | L132: 401 | M132: =J132*K132 -> 6300 | N132: 252.63 | O132: 11610 | P132: 7314.3 | Q132: 1610 | R132: 465.5172414 | S132: 293.2758621 | T132: 3
A133: 131 | B133: 16951 | C133: 11 | E133: DB | F133: 3 | G133: 51 | H133: A | I133: A | J133: 0.52 | K133: 10000 | L133: 401 | M133: 5200 | N133: 208.52 | O133: 17857.04 | P133: 9285.6608 | Q133: 7857.04 | R133: 716 | S133: 372.32 | T133: 7
A134: 132 | B134: 16952 | C134: 11 | E134: DB | F134: 4.5 | G134: 56 | H134: A | I134: A | J134: 0.94 | K134: 10000 | L134: 401 | M134: 9400 | N134: 376.94 | O134: 14140.98 | P134: 13292.5212 | Q134: 4140.98 | R134: 567 | S134: 532.98 | T134: 5
A135: 133 | B135: 16953 | C135: 11 | E135: DB | F135: 3.5 | G135: 58 | H135: II | I135: A | J135: 0.79 | K135: 12000 | L135: 481 | M135: 9480 | N135: 379.99 | O135: 14975 | P135: 11830.25 | Q135: 2975 | R135: 600.4410585 | S135: 474.3484362 | T135: 3
A136: 134 | B136: 16954 | C136: 11 | E136: DB | F136: 4.5 | G136: 52 | H136: A | I136: A | J136: 0.81 | K136: 10000 | L136: 401 | M136: 8100 | N136: 324.81 | O136: 12220.6 | P136: 9898.686 | Q136: 2220.6 | R136: 490 | S136: 396.9 | T136: 2
A137: 135 | B137: 16955 | C137: 11 | E137: DB | F137: 4.5 | G137: 56 | H137: II | I137: A | J137: 0.94 | K137: 12000 | L137: 481 | M137: 11280 | N137: 452.14 | O137: 15138.58 | P137: 14230.2652 | Q137: 3138.58 | R137: 607 | S137: 570.58 | T137: 7
A138: 136 | B138: 16956 | C138: 11 | E138: DB | F138: 3 | G138: 53 | H138: A | I138: A | J138: 0.56 | K138: 10000 | L138: 401 | M138: 5600 | N138: 224.56 | O138: 13841.7 | P138: 7751.352 | Q138: 3841.7 | R138: 555 | S138: 310.8 | T138: 6
A139: 137 | B139: 16957 | C139: 11 | E139: DB | F139: 4 | G139: 56 | H139: II | I139: A | J139: 0.84 | K139: 12000 | L139: 481 | M139: 10080 | N139: 404.04 | O139: 16522 | P139: 13878.48 | Q139: 4522 | R139: 662.4699278 | S139: 556.4747394 | T139: 7
A140: 138 | B140: 16958 | C140: 9 | E140: JS | F140: 8 | G140: 75 | H140: II | I140: A | J140: 3.04 | K140: 4500 | L140: 180 | M140: 13680 | N140: 547.2 | O140: 4988 | P140: 15163.52 | Q140: 488 | R140: 200 | S140: 608 | T140: 4
A141: 139 | B141: 16959 | C141: 9 | E141: JS | F141: 5 | G141: 64 | H141: A | I141: A | J141: 1.38 | K141: 3500 | L141: 140 | M141: 4830 | N141: 193.2 | O141: 4738.6 | P141: 6539.268 | Q141: 1238.6 | R141: 190 | S141: 262.2 | T141: 3
A142: 140 | B142: 16960 | C142: 9 | E142: JS | F142: 4 | G142: 77 | H142: II | I142: A | J142: 1.6 | K142: 4500 | L142: 180 | M142: 7200 | N142: 288 | O142: 4988 | P142: 7980.8 | Q142: 488 | R142: 200 | S142: 320 | T142: 4
A143: 141 | B143: 16961 | C143: 1 | E143: DB | F143: 9 | G143: 45 | H143: A | I143: A | J143: 1.21 | K143: 8000 | L143: 321 | M143: 9680 | N143: 388.41 | O143: 12644.58 | P143: 15299.9418 | Q143: 4644.58 | R143: 507 | S143: 613.47 | T143: 5
A144: 142 | B144: 16962 | C144: 1 | E144: DB | F144: 10 | G144: 48 | H144: A | I144: A | J144: 1.53 | K144: 8000 | L144: 321 | M144: 12240 | N144: 491.13 | O144: 12644.58 | P144: 19346.2074 | Q144: 4644.58 | R144: 507 | S144: 775.71 | T144: 4
A145: 143 | B145: 16963 | C145: 6 | E145: JS | F145: 11.5 | G145: 47 | H145: II | I145: A | J145: 1.69 | K145: 4500 | L145: 180 | M145: 7605 | N145: 304.2 | O145: 4988 | P145: 8429.72 | Q145: 488 | R145: 200 | S145: 338 | T145: 3
A146: 144 | B146: 16964 | C146: 6 | E146: JS | F146: 10 | G146: 49 | H146: II | I146: A | J146: 1.6 | K146: 4500 | L146: 180 | M146: 7200 | N146: 288 | O146: 4988 | P146: 7980.8 | Q146: 488 | R146: 200 | S146: 320 | T146: 3
A147: 145 | B147: 16965 | C147: 6 | E147: JS | F147: 8.5 | G147: 47 | H147: C | I147: C | J147: 1.25 | K147: 2300 | L147: 92 | M147: 2875 | N147: 115 | O147: 4239.8 | P147: 5299.75 | Q147: 1939.8 | R147: 170 | S147: 212.5 | T147: 3
A148: 146 | B148: 16966 | C148: 6 | E148: JS | F148: 10 | G148: 55 | H148: II | I148: A | J148: 2.02 | K148: 4500 | L148: 180 | M148: 9090 | N148: 363.6 | O148: 4988 | P148: 10075.76 | Q148: 488 | R148: 200 | S148: 404 | T148: 4
A149: 147 | B149: 16967 | C149: 9 | E149: JS | F149: 12 | G149: 47 | H149: A | I149: A | J149: 1.76 | K149: 3500 | L149: 140 | M149: 6160 | N149: 246.4 | O149: 4738.6 | P149: 8339.936 | Q149: 1238.6 | R149: 190 | S149: 334.4 | T149: 3
A150: 148 | B150: 16968 | C150: 9 | E150: JS | F150: 12 | G150: 57 | H150: A | I150: A | J150: 2.61 | K150: 3500 | L150: 140 | M150: 9135 | N150: 365.4 | O150: 4738.6 | P150: 12367.746 | Q150: 1238.6 | R150: 190 | S150: 495.9 | T150: 3
A151: 149 | B151: 16969 | C151: 9 | E151: JS | F151: 12 | G151: 52 | H151: A | I151: A | J151: 2.16 | K151: 3500 | L151: 140 | M151: 7560 | N151: 302.4 | O151: 4738.6 | P151: 10235.376 | Q151: 1238.6 | R151: 190 | S151: 410.4 | T151: 3
A152: 150 | B152: 16970 | C152: 9 | E152: JS | F152: 11 | G152: 66 | H152: B | I152: A | J152: 3.23 | K152: 3000 | L152: 120 | M152: 9690 | N152: 387.6 | O152: 4489.2 | P152: 14500.116 | Q152: 1489.2 | R152: 180 | S152: 581.4 | T152: 3
A153: 151 | B153: 16971 | C153: 9 | E153: JS | F153: 11 | G153: 66 | H153: A | I153: A | J153: 3.23 | K153: 3500 | L153: 140 | M153: 11305 | N153: 452.2 | O153: 4738.6 | P153: 15305.678 | Q153: 1238.6 | R153: 190 | S153: 613.7 | T153: 3
A154: 152 | B154: 16972 | C154: 9 | E154: JS | F154: 12 | G154: 49 | H154: A | I154: A | J154: 1.92 | K154: 3500 | L154: 140 | M154: 6720 | N154: 268.8 | O154: 4750 | P154: 9120 | Q154: 1250 | R154: 190.457097 | S154: 365.6776263 | T154: 3
A155: 153 | B155: 16973 | C155: 9 | E155: JS | F155: 12 | G155: 47 | H155: B | I155: B | J155: 1.76 | K155: 3000 | L155: 120 | M155: 5280 | N155: 211.2 | O155: 4489.2 | P155: 7900.992 | Q155: 1489.2 | R155: 180 | S155: 316.8 | T155: 3
A156: 154 | B156: 16974 | C156: 9 | E156: JS | F156: 12 | G156: 53 | H156: A | I156: A | J156: 2.25 | K156: 3500 | L156: 140 | M156: 7875 | N156: 315 | O156: 4738.6 | P156: 10661.85 | Q156: 1238.6 | R156: 190 | S156: 427.5 | T156: 3
A157: 155 | B157: 16975 | C157: 10 | E157: DB | F157: 6 | G157: 39 | H157: A | I157: B | J157: 0.6 | K157: 5500 | L157: 221 | M157: 3300 | N157: 132.6 | O157: 10150.58 | P157: 6090.348 | Q157: 4650.58 | R157: 407 | S157: 244.2 | T157: 4
A158: 156 | B158: 16976 | C158: 10 | E158: DB | F158: 5 | G158: 36 | H158: A | I158: B | J158: 0.42 | K158: 5500 | L158: 221 | M158: 2310 | N158: 92.82 | O158: 10150.58 | P158: 4263.2436 | Q158: 4650.58 | R158: 407 | S158: 170.94 | T158: 6
A159: 157 | B159: 16977 | C159: 10 | E159: DB | F159: 4.9 | G159: 38 | H159: A | I159: B | J159: 0.46 | K159: 5500 | L159: 221 | M159: 2530 | N159: 101.66 | O159: 11397.58 | P159: 5242.8868 | Q159: 5897.58 | R159: 457 | S159: 210.22 | T159: 5
A160: 158 | B160: 16978 | C160: 10 | E160: DB | F160: 5 | G160: 43 | H160: A | I160: A | J160: 0.61 | K160: 8000 | L160: 321 | M160: 4880 | N160: 195.81 | O160: 12644.58 | P160: 7713.1938 | Q160: 4644.58 | R160: 507 | S160: 309.27 | T160: 6
A161: 159 | B161: 16979 | C161: 10 | E161: DB | F161: 3.9 | G161: 44 | H161: B | I161: B | J161: 0.5 | K161: 6000 | L161: 241 | M161: 3000 | N161: 120.5 | O161: 8504.54 | P161: 4252.27 | Q161: 2504.54 | R161: 341 | S161: 170.5 | T161: 1
A162: 160 | B162: 16980 | C162: 10 | E162: DB | F162: 4 | G162: 42 | H162: A | I162: A | J162: 0.47 | K162: 8000 | L162: 321 | M162: 3760 | N162: 150.87 | O162: 11472.4 | P162: 5392.028 | Q162: 3472.4 | R162: 460 | S162: 216.2 | T162: 3
A163: 161 | B163: 16981 | C163: 10 | E163: DB | F163: 4 | G163: 44 | H163: B | I163: B | J163: 0.51 | K163: 6000 | L163: 241 | M163: 3060 | N163: 122.91 | O163: 11505 | P163: 5867.55 | Q163: 5505 | R163: 461.3071371 | S163: 235.2666399 | T163: 5
A164: 162 | B164: 16982 | C164: 10 | E164: DB | F164: 4 | G164: 43 | H164: II | I164: A | J164: 0.49 | K164: 10000 | L164: 401 | M164: 4900 | N164: 196.49 | O164: 12405 | P164: 6078.45 | Q164: 2405 | R164: 497.393745 | S164: 243.722935 | T164: 5
A165: 163 | B165: 16983 | C165: 10 | E165: DB | F165: 4 | G165: 39 | H165: A | I165: B | J165: 0.4 | K165: 5500 | L165: 221 | M165: 2200 | N165: 88.4 | O165: 9725 | P165: 3890 | Q165: 4225 | R165: 389.935846 | S165: 155.9743384 | T165: 3
A166: 164 | B166: 16984 | C166: 10 | E166: DB | F166: 4 | G166: 65 | H166: II | I166: A | J166: 1.14 | K166: 12000 | L166: 481 | M166: 13680 | N166: 548.34 | O166: 12719.4 | P166: 14500.116 | Q166: 719.4 | R166: 510 | S166: 581.4 | T166: 2
A167: 165 | B167: 16985 | C167: 10 | E167: JS | F167: 5 | G167: 53 | H167: II | I167: A | J167: 0.94 | K167: 4500 | L167: 180 | M167: 4230 | N167: 169.2 | O167: 4988 | P167: 4688.72 | Q167: 488 | R167: 200 | S167: 188 | T167: 4
A168: 166 | B168: 16986 | C168: 10 | E168: JS | F168: 8 | G168: 58 | H168: II | I168: A | J168: 1.8 | K168: 4500 | L168: 180 | M168: 8100 | N168: 324 | O168: 4988 | P168: 8978.4 | Q168: 488 | R168: 200 | S168: 360 | T168: 4
A169: 167 | B169: 16987 | C169: 10 | E169: JS | F169: 3.9 | G169: 68 | H169: A | I169: A | J169: 1.22 | K169: 3500 | L169: 140 | M169: 4270 | N169: 170.8 | O169: 4738.6 | P169: 5781.092 | Q169: 1238.6 | R169: 190 | S169: 231.8 | T169: 2
A170: 168 | B170: 16988 | C170: 10 | E170: DB | F170: 5 | G170: 41 | H170: II | I170: A | J170: 0.55 | K170: 10000 | L170: 401 | M170: 5500 | N170: 220.55 | O170: 13816.76 | P170: 7599.218 | Q170: 3816.76 | R170: 554 | S170: 304.7 | T170: 4
A171: 169 | B171: 16989 | C171: 10 | E171: JS | F171: 6 | G171: 43 | H171: II | I171: A | J171: 0.73 | K171: 4500 | L171: 180 | M171: 3285 | N171: 131.4 | O171: 4988 | P171: 3641.24 | Q171: 488 | R171: 200 | S171: 146 | T171: 4
A172: 170 | B172: 16990 | C172: 10 | E172: DB | F172: 7 | G172: 71 | H172: B | I172: A | J172: 2.38 | K172: 7500 | L172: 301 | M172: 17850 | N172: 716.38 | O172: 10225.4 | P172: 24336.452 | Q172: 2725.4 | R172: 410 | S172: 975.8 | T172: 3
A173: 171 | B173: 16991 | C173: 11 | E173: DB | F173: 3.5 | G173: 55 | H173: I | I173: A | J173: 0.71 | K173: 18000 | L173: 722 | M173: 12780 | N173: 512.62 | O173: 8550 | P173: NEPRODÁNO | Q173: -9450 | R173: 342.8227747 | S173: NEPRODÁNO | T173: 1
A174: 172 | B174: 16992 | C174: 11 | E174: DB | F174: 5 | G174: 63 | H174: II | I174: A | J174: 1.33 | K174: 12000 | L174: 481 | M174: 15960 | N174: 639.73 | O174: 19453.2 | P174: 25872.756 | Q174: 7453.2 | R174: 780 | S174: 1037.4 | T174: 7
A175: 173 | B175: 16993 | C175: 11 | E175: DB | F175: 4 | G175: 62 | H175: II | I175: A | J175: 1.03 | K175: 12000 | L175: 481 | M175: 12360 | N175: 495.43 | O175: 32047.9 | P175: 33009.337 | Q175: 20047.9 | R175: 1285 | S175: 1323.55 | T175: 9
A176: 174 | B176: 16994 | C176: 11 | E176: DB | F176: 4.5 | G176: 49 | H176: II | I176: A | J176: 0.72 | K176: 10000 | L176: 401 | M176: 7200 | N176: 288.72 | O176: 16161.12 | P176: 11636.0064 | Q176: 6161.12 | R176: 648 | S176: 466.56 | T176: 9
A177: 175 | B177: 16995 | C177: 11 | E177: DB | F177: 6 | G177: 59 | H177: C | I177: C | J177: 1.4 | K177: 5000 | L177: 200 | M177: 7000 | N177: 280 | O177: 20450.8 | P177: 28631.12 | Q177: 15450.8 | R177: 820 | S177: 1148 | T177: 6
A178: 176 | B178: 16996 | C178: 11 | E178: DB | F178: 6 | G178: 67 | H178: II | I178: A | J178: 1.81 | K178: 12000 | L178: 481 | M178: 21720 | N178: 870.61 | O178: 35414.8 | P178: 64100.788 | Q178: 23414.8 | R178: 1420 | S178: 2570.2 | T178: 11
A179: 177 | B179: 16997 | C179: 11 | E179: DB | F179: 6 | G179: 43 | H179: A | I179: A | J179: 0.73 | K179: 8000 | L179: 321 | M179: 5840 | N179: 234.33 | O179: 13143.38 | P179: 9594.6674 | Q179: 5143.38 | R179: 527 | S179: 384.71 | T179: 6
A180: 178 | B180: 16998 | C180: 11 | E180: DB | F180: 6 | G180: 48 | H180: II | I180: A | J180: 0.92 | K180: 10000 | L180: 401 | M180: 9200 | N180: 368.92 | O180: 13891.58 | P180: 12780.2536 | Q180: 3891.58 | R180: 557 | S180: 512.44 | T180: 7
A181: 179 | B181: 16999 | C181: 11 | E181: DB | F181: 5.5 | G181: 62 | H181: B | I181: A | J181: 1.42 | K181: 7500 | L181: 301 | M181: 10650 | N181: 427.42 | O181: 12145.78 | P181: 17247.0076 | Q181: 4645.78 | R181: 487 | S181: 691.54 | T181: 4
A182: 180 | B182: 17000 | C182: 11 | E182: DB | F182: 5 | G182: 71 | H182: II | I182: A | J182: 1.7 | K182: 12000 | L182: 481 | M182: 20400 | N182: 817.7 | O182: 20552 | P182: 34938.4 | Q182: 8552 | R182: 824.0577386 | S182: 1400.898156 | T182: 7
A183: 181 | B183: 17001 | C183: 11 | E183: DB | F183: 9 | G183: 52 | H183: II | I183: A | J183: 1.62 | K183: 12000 | L183: 481 | M183: 19440 | N183: 779.22 | O183: 13891.58 | P183: 22504.3596 | Q183: 1891.58 | R183: 557 | S183: 902.34 | T183: 6
A184: 182 | B184: 17002 | C184: 11 | E184: DB | F184: 6 | G184: 63 | H184: C | I184: B | J184: 1.6 | K184: 5000 | L184: 200 | M184: 8000 | N184: 320 | O184: 12122 | P184: 19395.2 | Q184: 7122 | R184: 486.0465116 | S184: 777.6744186 | T184: 4
A185: 183 | B185: 17003 | C185: 11 | E185: DB | F185: 7 | G185: 68 | H185: B | I185: A | J185: 2.18 | K185: 7500 | L185: 301 | M185: 16350 | N185: 656.18 | O185: 11073.36 | P185: 24139.9248 | Q185: 3573.36 | R185: 444 | S185: 967.92 | T185: 3
A186: 184 | B186: 17004 | C186: 11 | E186: DB | F186: 8.5 | G186: 65 | H186: II | I186: A | J186: 2.42 | K186: 12000 | L186: 481 | M186: 29040 | N186: 1164.02 | O186: 31574.04 | P186: 76409.1768 | Q186: 19574.04 | R186: 1266 | S186: 3063.72 | T186: 7
A187: 185 | B187: 17005 | C187: 11 | E187: DB | F187: 6 | G187: 78 | H187: B | I187: A | J187: 2.47 | K187: 7500 | L187: 301 | M187: 18525 | N187: 743.47 | O187: 20450.8 | P187: 50513.476 | Q187: 12950.8 | R187: 820 | S187: 2025.4 | T187: 6
A188: 186 | B188: 17006 | C188: 11 | E188: DB | F188: 7.5 | G188: 81 | H188: I | I188: A | J188: 3.33 | K188: 18000 | L188: 722 | M188: 59940 | N188: 2404.26 | O188: 33319.84 | P188: 110955.0672 | Q188: 15319.84 | R188: 1336 | S188: 4448.88 | T188: 7
A189: 187 | B189: 17007 | C189: 11 | E189: DB | F189: 4 | G189: 70 | H189: II | I189: A | J189: 1.32 | K189: 12000 | L189: 481 | M189: 15840 | N189: 634.92 | O189: 17552 | P189: 23168.64 | Q189: 5552 | R189: 703.7690457 | S189: 928.9751403 | T189: 3
A190: 188 | B190: 17008 | C190: 11 | E190: DB | F190: 4 | G190: 45 | H190: II | I190: A | J190: 0.54 | K190: 10000 | L190: 401 | M190: 5400 | N190: 216.54 | O190: 14390.38 | P190: 7770.8052 | Q190: 4390.38 | R190: 577 | S190: 311.58 | T190: 7
A191: 189 | B191: 17009 | C191: 11 | E191: DB | F191: 4.5 | G191: 46 | H191: II | I191: A | J191: 0.63 | K191: 10000 | L191: 401 | M191: 6300 | N191: 252.63 | O191: 14515.08 | P191: 9144.5004 | Q191: 4515.08 | R191: 582 | S191: 366.66 | T191: 7
A192: 190 | B192: 17010 | C192: 11 | E192: DB | F192: 4 | G192: 72 | H192: A | I192: A | J192: 1.4 | K192: 10000 | L192: 401 | M192: 14000 | N192: 561.4 | O192: 24067.1 | P192: 33693.94 | Q192: 14067.1 | R192: 965 | S192: 1351 | T192: 7
A193: 191 | B193: 17011 | C193: 11 | E193: DB | F193: 4 | G193: 45 | H193: II | I193: A | J193: 0.54 | K193: 10000 | L193: 401 | M193: 5400 | N193: 216.54 | O193: 17682.46 | P193: 9548.5284 | Q193: 7682.46 | R193: 709 | S193: 382.86 | T193: 6
A194: 192 | B194: 17012 | C194: 11 | E194: DB | F194: 6 | G194: 46 | H194: A | I194: A | J194: 0.84 | K194: 8000 | L194: 321 | M194: 6720 | N194: 269.64 | O194: 13966.4 | P194: 11731.776 | Q194: 5966.4 | R194: 560 | S194: 470.4 | T194: 6
A195: 193 | B195: 17013 | C195: 13 | E195: DB | F195: 6.5 | G195: 48 | H195: II | I195: A | J195: 1 | K195: 10000 | L195: 401 | M195: 10000 | N195: =J195*L195 -> 401 | O195: 15836.9 | P195: 15836.9 | Q195: 5836.9 | R195: 635 | S195: 635 | T195: 5
A196: 194 | B196: 17014 | C196: 13 | E196: DB | F196: 5 | G196: 49 | H196: II | I196: A | J196: 0.8 | K196: 10000 | L196: 401 | M196: =J196*K196 -> 8000 | N196: 320.8 | O196: 19602.84 | P196: 15682.272 | Q196: 9602.84 | R196: 786 | S196: 628.8 | T196: 5
A197: 195 | B197: 17015 | C197: 13 | E197: DB | F197: 6.2 | G197: 45 | H197: A | I197: A | J197: 0.83 | K197: 8000 | L197: 321 | M197: 6640 | N197: 266.43 | O197: 13392.78 | P197: 11116.0074 | Q197: 5392.78 | R197: 537 | S197: 445.71 | T197: 5
A198: 196 | B198: 17016 | C198: 13 | E198: DB | F198: 7.3 | G198: 45 | H198: A | I198: A | J198: 0.98 | K198: 8000 | L198: 321 | M198: 7840 | N198: 314.58 | O198: 13143.38 | P198: 12880.5124 | Q198: 5143.38 | R198: 527 | S198: 516.46 | T198: 4
A199: 197 | B199: 17017 | C199: 14 | E199: DB | F199: 3 | G199: 38 | H199: A | I199: B | J199: 0.28 | K199: 5500 | L199: 221 | M199: 1540 | N199: 61.88 | O199: 5561 | P199: 1557.08 | Q199: 61 | R199: 222.9751403 | S199: 62.43303929 | T199: 2
A200: 198 | B200: 17018 | C200: 14 | E200: DB | F200: 3 | G200: 45 | H200: A | I200: A | J200: 0.4 | K200: 8000 | L200: 321 | M200: 3200 | N200: 128.4 | O200: 8250 | P200: 3300 | Q200: 250 | R200: 330.7939054 | S200: 132.3175621 | T200: 2
... 473 more rows
